bitfinex/quotes_ETHUSD_20220212
["timestamp","ask_amount","ask_price","bid_price","bid_amount"]
[1644669821305,0.63038663,2915.8,2915.4,0.00937503]
[1644669821710,0.93038663,2915.8,2915.4,0.00937503]
[1644669822108,0.88038663,2915.8,2915.4,0.00937503]
[1644669822307,0.01875005,2915.3,2915.0,0.4713]
[1644669823713,0.01875005,2915.3,2915.0,0.48067541]
[1644669824760,0.01875005,2915.3,2915.0,0.4713]
[1644669825061,0.01875005,2915.3,2915.0,0.48067541]
[1644669825962,0.01875005,2915.3,2915.0,0.4713]
[1644669826160,0.01875005,2915.3,2915.0,0.48067541]
[1644669826965,0.01875005,2915.3,2915.0,0.30937541]
[1644669827162,0.01875005,2915.3,2915.0,0.3]
[1644669827362,0.01875005,2915.3,2915.0,0.30937541]
[1644669828201,0.01875005,2915.3,2915.0,0.3]
[1644669828601,0.01875005,2915.3,2915.0,0.30937541]
[1644669829404,0.01875005,2915.3,2915.0,0.3]
[1644669829808,0.01875005,2915.3,2915.0,0.30937541]
[1644669830313,0.01875005,2915.3,2915.1,0.1715]
[1644669830511,0.01875005,2915.3,2915.1,4.23663194]
[1644669830709,0.01875005,2915.3,2915.2,3.64351851]
[1644669830912,0.01875005,2915.3,2915.2,5.13451851]
[1644669831110,0.01875005,2915.3,2915.2,1.491]
[1644669833357,0.01875005,2915.3,2915.2,4.89614184]
[1644669833756,0.01875005,2915.3,2915.2,1.491]
[1644669834763,0.01875005,2915.3,2915.2,1.6625]
[1644669835806,0.01875005,2915.3,2915.2,0.491]
[1644669836205,0.01875005,2915.3,2915.1,0.00936772]
[1644669836805,0.01875005,2915.3,2915.0,0.3]
[1644669837105,0.01875005,2915.3,2915.1,0.00936778]
[1644669837904,0.01875005,2915.3,2915.0,0.3]
[1644669838107,0.01875005,2915.3,2915.1,0.00937536]
[1644669838708,1.45978023,2915.2,2915.1,0.00937536]
[1644669838911,1.46078023,2915.2,2915.1,0.00937536]
[1644669839208,1.76078023,2915.2,2914.6,0.69512568]
[1644669839462,0.5050067,2915.1,2915.0,0.00937541]
[1644669839660,0.5040067,2915.1,2915.0,0.00937541]
[1644669840060,1.96385606,2915.1,2915.0,0.00937541]
[1644669840259,1.96485606,2915.1,2914.6,0.69512568]
[1644669840461,0.001,2915.0,2914.6,0.69512568]
[1644669840661,0.10260904,2915.3,2914.9,0.00937552]
[1644669840662,1.45987386,2915.1,2914.9,0.00937552]
[1644669840859,0.3,2915.1,2914.9,0.00937552]
[1644669841258,0.10260904,2915.3,2914.9,0.00937552]
[1644669841259,1.4598772,2915.0,2914.9,0.00937552]
[1644669841459,1.4608772,2915.0,2914.6,0.69512568]
[1644669841660,1.4608772,2915.0,2914.3,3.655]
[1644669841661,0.001,2914.9,2914.3,3.655]
[1644669841859,0.3,2915.1,2914.2,0.4715]
[1644669842061,1.75987244,2915.0,2914.2,0.1715]
[1644669842260,0.001,2914.9,2914.2,0.1715]
[1644669842464,0.3,2915.0,2914.2,0.1715]
[1644669842660,0.3,2915.0,2914.4,0.51370778]
[1644669842959,0.3,2915.0,2914.4,0.52308385]
[1644669843421,0.3,2915.1,2914.4,0.52308385]
[1644669843621,0.10260904,2915.3,2914.4,0.52308385]
[1644669843822,1.75984535,2915.2,2914.4,0.52308385]
[1644669844021,1.46084535,2915.1,2914.4,0.51370778]
[1644669844222,0.001,2915.0,2914.7,0.00937574]
[1644669844627,0.01875148,2914.6,2914.0,1.1484]
[1644669844826,0.01875148,2914.6,2914.0,0.3]
[1644669845227,0.01875148,2914.6,2914.4,0.58227405]
[1644669847854,0.01875148,2914.6,2914.4,0.88227405]
[1644669848856,0.01875148,2914.6,2914.4,0.58227405]
[1644669849056,0.01875148,2914.6,2914.4,0.89165018]
[1644669849662,0.10216749,2914.6,2914.5,0.02513045]
[1644669849863,0.10216749,2914.6,2914.5,0.19663045]
[1644669850612,0.10216749,2914.6,2914.5,0.02513045]
[1644669855158,0.10216749,2914.6,2914.4,0.30937607]
[1644669855959,0.10216749,2914.6,2914.4,0.3]
[1644669856259,0.10216749,2914.6,2914.4,0.30937613]
[1644669856661,0.10216749,2914.6,2914.5,0.53005133]
[1644669857264,1.70741393,2916.4,2914.5,5.0]
[1644669857467,2.98388985,2917.5,2914.5,5.0]
[1644669857468,0.00787272,2916.7,2915.7,0.01284404]
[1644669857672,0.00787272,2916.8,2916.4,0.01229992]
[1644669857873,1.45938108,2917.9,2916.4,1.08759992]
[1644669857874,1.45938108,2916.7,2916.4,1.08759992]
[1644669858105,1.29216064,2918.0,2916.5,4.1623]
[1644669858309,1.45896367,2917.7,2916.9,0.71329559]
[1644669858506,1.45896367,2917.7,2917.1,6.142]
[1644669858711,1.45896367,2917.7,2917.5,6.142]
[1644669858908,7.46,2918.4,2917.6,0.491]
[1644669859105,7.46,2918.4,2917.6,1.6623]
[1644669859106,0.01371513,2917.8,2917.6,1.6623]
[1644669859306,0.01371513,2917.8,2917.6,7.8043]
[1644669860515,6.1925,2919.0,2917.6,7.8043]
[1644669860713,8.92346064,2919.1,2917.9,0.8568]
[1644669860910,8.92346064,2919.1,2918.0,0.491]
[1644669860911,7.6313,2919.1,2918.0,0.491]
[1644669861111,0.03745065,2918.3,2918.0,0.791]
[1644669861955,0.1713,2919.0,2918.0,0.791]
[1644669862156,0.00936357,2918.3,2918.1,3.19317487]
[1644669862460,0.00936357,2918.3,2918.2,0.491]
[1644669863160,0.1723,2919.0,2918.2,0.491]
[1644669863355,0.00936346,2918.4,2918.2,0.491]
[1644669864356,0.93653729,2918.7,2918.2,0.491]
[1644669864562,0.0093634,2918.4,2918.2,0.491]
[1644669864760,0.0093634,2918.4,2918.3,0.491]
[1644669865609,0.93653729,2918.7,2918.3,0.491]
[1644669865809,0.00936334,2918.5,2918.3,0.491]
[1644669866806,0.93653729,2918.7,2918.3,0.491]
[1644669867007,0.00936329,2918.5,2918.3,0.491]
[1644669867907,0.93653729,2918.7,2918.3,0.491]
[1644669868207,0.00936329,2918.5,2918.3,0.491]
[1644669869208,0.93653729,2918.7,2918.3,0.491]
[1644669869463,0.00936329,2918.5,2918.3,0.491]
[1644669870361,0.93653729,2918.7,2918.3,0.491]
[1644669870562,0.00936329,2918.5,2918.3,0.491]
[1644669870962,0.00936329,2918.5,2918.4,0.07375295]
[1644669871266,0.00936329,2918.5,2918.4,0.56475295]
[1644669871465,0.3,2918.7,2918.4,3.86049921]
[1644669871669,0.001,2919.0,2918.5,0.85656]
[1644669871865,0.03844732,2919.0,2918.6,0.491]
[1644669872463,0.54540049,2919.0,2918.6,0.491]
[1644669872764,0.50795317,2919.0,2918.6,0.491]
[1644669872963,0.00936285,2918.9,2918.6,0.491]
[1644669873912,0.001,2919.0,2918.6,1.491]
[1644669874108,0.001,2919.0,2918.7,4.94435944]
[1644669874306,0.001,2919.0,2918.8,1.491]
[1644669874510,0.0093629,2918.9,2918.8,1.491]
[1644669874710,0.0093629,2918.9,2918.8,4.84198253]
[1644669875110,0.001,2919.0,2918.8,4.84198253]
[1644669875311,0.01036279,2919.0,2918.9,3.38791818]
[1644669875511,0.01036279,2919.0,2918.9,4.17891818]
[1644669875711,0.01036279,2919.0,2918.9,5.17891818]
[1644669875912,0.01036279,2919.0,2918.9,1.9621]
[1644669876111,0.01036279,2919.0,2918.9,1.791]
[1644669876311,0.001,2919.0,2918.9,0.791]
[1644669876956,0.001,2919.0,2918.9,3.9577823]
[1644669877358,0.001,2919.0,2918.9,1.791]
[1644669877760,0.001,2919.0,2918.9,0.791]
[1644669877959,0.30936268,2919.1,2918.9,4.04267081]
[1644669878162,0.00936268,2919.1,2918.9,4.04267081]
[1644669878359,0.00936268,2919.1,2919.0,1.0]
[1644669878360,0.30936268,2919.1,2919.0,1.0]
[1644669878560,0.00936268,2919.1,2919.0,1.491]
[1644669878758,0.00488449,2919.7,2919.0,0.491]
[1644669878961,0.00488449,2919.7,2919.1,3.21416302]
[1644669878962,0.00936257,2919.2,2919.1,3.21416302]
[1644669879166,0.00936257,2919.2,2919.1,0.3]
[1644669879361,0.00936257,2919.2,2919.1,1.791]
[1644669879567,0.00936257,2919.2,2919.1,0.791]
[1644669879767,0.00936257,2919.2,2919.1,0.491]
[1644669879966,0.17598449,2919.7,2919.1,0.491]
[1644669880366,0.00936246,2919.3,2918.9,0.06508781]
[1644669880607,0.57530679,2919.2,2918.9,0.06508781]
[1644669880808,0.87530679,2919.2,2918.9,0.06508781]
[1644669881411,0.88466936,2919.2,2918.9,0.06508781]
[1644669882411,0.87530679,2919.2,2918.9,0.06508781]
[1644669882612,0.88466936,2919.2,2918.9,0.06508781]
[1644669883015,0.06255389,2918.8,2917.8,9.35122]
[1644669883213,0.06255389,2918.8,2917.8,0.1713]
[1644669883214,5.1713,2918.7,2917.8,0.1713]
[1644669883415,1.001,2918.6,2917.2,0.1713]
[1644669883612,0.60639926,2917.6,2917.1,3.6713]
[1644669883812,0.00388449,2917.5,2917.1,3.5]
[1644669884010,0.00388449,2917.5,2917.0,0.1713]
[1644669885064,0.00936457,2917.4,2917.0,0.1713]
[1644669885665,0.00936457,2917.4,2917.1,0.491]
[1644669885864,0.00936457,2917.4,2917.1,1.491]
[1644669886066,0.00388449,2917.5,2917.1,1.491]
[1644669886270,0.00936462,2917.3,2917.1,0.491]
[1644669887072,0.00388449,2917.5,2917.1,0.491]
[1644669887469,0.00388449,2917.5,2917.3,0.00936462]
[1644669887769,0.0178349,2917.2,2917.1,0.491]
[1644669888210,0.0178349,2917.2,2917.1,0.6623]
[1644669888813,0.0178349,2917.2,2917.1,0.9623]
[1644669889213,0.0178349,2917.2,2917.1,0.1713]
[1644669890115,0.0178349,2917.2,2916.9,1.3]
[1644669890116,0.0178349,2917.2,2916.9,0.3]
[1644669890316,0.0178349,2917.2,2916.9,1.3]
[1644669890615,0.0178349,2917.2,2916.9,0.3]
[1644669891218,0.0178349,2917.2,2916.9,1.3]
[1644669891616,0.0178349,2917.2,2917.0,0.1713]
[1644669892158,0.0178349,2917.2,2916.9,1.791]
[1644669893461,0.0178349,2917.2,2917.0,0.1713]
[1644669893662,0.0178349,2917.2,2916.7,0.491]
[1644669893866,0.0178349,2917.2,2916.4,0.1713]
[1644669894064,0.0178349,2917.2,2916.3,0.00912484]
[1644669894466,0.0178349,2917.2,2916.0,0.25]
[1644669894666,0.0178349,2917.2,2916.3,0.00936181]
[1644669894870,0.66389949,2916.6,2916.3,0.00936181]
[1644669895266,0.96389949,2916.6,2916.3,0.00936181]
[1644669895709,0.96389949,2916.6,2915.9,0.1713]
[1644669895909,0.96389949,2916.6,2916.3,0.00936118]
[1644669896910,0.96389949,2916.6,2916.0,0.85735]
[1644669897108,0.96389949,2916.6,2916.3,0.00936118]
[1644669897910,0.3,2916.6,2916.3,0.86658118]
[1644669898110,0.03553423,2917.2,2916.4,0.3]
[1644669898710,0.03553423,2917.2,2916.3,1.00936639]
[1644669898908,0.64668343,2916.8,2916.3,0.00936639]
[1644669899109,0.94668343,2916.8,2916.3,1.00936639]
[1644669899357,0.94668343,2916.8,2916.3,0.0093666]
[1644669900162,0.01766274,2916.5,2916.4,0.0241029]
[1644669905320,0.01766274,2916.5,2916.2,0.19299261]
[1644669905515,0.01766274,2916.5,2916.4,0.02255468]
[1644669908867,0.01766274,2916.5,2916.4,0.51355468]
[1644669909065,0.01766274,2916.5,2916.4,1.67720014]
[1644669909362,0.01766274,2916.5,2916.4,2.64424108]
[1644669909768,0.01766274,2916.5,2916.4,3.64424108]
[1644669910368,0.01766274,2916.5,2916.4,3.66603093]
[1644669911411,0.01766274,2916.5,2916.4,3.49473093]
[1644669911610,0.01766274,2916.5,2916.4,2.49473093]
[1644669911812,0.01766274,2916.5,2916.4,3.49473093]
[1644669912710,0.01766274,2916.5,2916.4,2.49473093]
[1644669912911,0.01766274,2916.5,2916.4,3.49473093]
[1644669917668,0.0178349,2917.2,2916.6,1.71407]
[1644669917867,0.0178349,2917.2,2916.7,2.20507]
[1644669918110,0.0178349,2917.2,2917.0,1.6593864]
[1644669918417,0.0178349,2917.2,2917.0,1.9593864]
[1644669918812,0.0178349,2917.2,2917.0,2.8164164]
[1644669919014,0.0178349,2917.2,2917.1,1.491]
[1644669919618,0.0178349,2917.2,2917.1,1.6238]
[1644669919619,3.49e-05,2917.2,2917.1,1.6238]
[1644669919817,3.49e-05,2917.2,2917.1,1.6294]
[1644669920016,3.49e-05,2917.2,2917.1,1.631]
[1644669920219,3.49e-05,2917.2,2917.1,1.6318]
[1644669920421,3.49e-05,2917.2,2917.1,1.6302]
[1644669920618,3.49e-05,2917.2,2917.1,1.6278]
[1644669920818,3.49e-05,2917.2,2917.1,1.6254]
[1644669921023,3.49e-05,2917.2,2917.1,1.7975]
[1644669921218,0.0087142,2917.4,2917.2,3.35]
[1644669921419,0.0087142,2917.4,2917.3,1.491]
[1644669921619,0.0087142,2917.4,2917.3,1.6623]
[1644669921894,0.0087142,2917.4,2917.3,1.9623]
[1644669922080,0.00488449,2918.4,2917.3,1.9623]
[1644669922282,0.03484959,2918.2,2917.5,0.8568]
[1644669922482,0.03973408,2918.2,2917.6,0.491]
[1644669922784,0.03484959,2918.2,2917.6,0.491]
[1644669923185,1.45839059,2918.1,2917.6,1.491]
[1644669923385,0.00488449,2918.0,2917.6,0.491]
[1644669923691,0.00871381,2918.0,2917.6,1.491]
[1644669923886,0.0125983,2918.0,2917.6,1.491]
[1644669924087,0.30871381,2918.0,2917.6,1.491]
[1644669924495,0.3,2918.0,2917.6,1.491]
[1644669924693,0.3,2918.0,2917.6,0.491]
[1644669924694,0.00871392,2917.9,2917.6,0.491]
[1644669924892,0.00871392,2917.9,2917.6,1.491]
[1644669925091,0.00871392,2917.9,2917.6,0.491]
[1644669925292,0.00871392,2917.9,2917.6,1.491]
[1644669925715,0.00488449,2918.4,2917.6,0.491]
[1644669925915,0.00875743,2917.9,2917.6,1.491]
[1644669926114,0.00875743,2917.9,2917.6,0.491]
[1644669926324,0.00875743,2917.9,2917.6,1.491]
[1644669926515,0.00875743,2917.9,2917.7,0.1713]
[1644669926717,0.00875743,2917.9,2917.8,0.491]
[1644669926915,0.00488449,2918.4,2917.8,0.491]
[1644669927215,0.00875738,2917.9,2917.8,0.491]
[1644669928016,0.00488449,2918.4,2917.8,0.491]
[1644669928217,0.00875732,2918.0,2917.8,0.491]
[1644669928416,0.00875732,2918.0,2917.9,0.8296932]
[1644669928619,0.56662715,2918.0,2917.9,2.1503864]
[1644669928823,0.86662715,2918.0,2917.9,2.4503864]
[1644669929365,0.3,2918.0,2917.9,2.4503864]
[1644669929770,0.0087543,2918.1,2917.9,2.4503864]
[1644669929771,0.3087543,2918.1,2917.9,2.4503864]
[1644669929968,0.0087543,2918.1,2917.9,2.4503864]
[1644669930368,0.00488449,2918.4,2917.9,2.4503864]
[1644669930569,2.00499982,2918.3,2917.9,3.3071264]
[1644669930769,0.00821611,2918.1,2917.9,4.3071264]
[1644669930967,0.00821611,2918.1,2917.9,3.3071264]
[1644669931167,0.00821611,2918.1,2918.0,1.0]
[1644669931570,0.84670164,2918.3,2918.0,1.0]
[1644669931970,0.00821607,2918.2,2918.0,1.0]
[1644669932176,1.45841819,2918.1,2917.9,0.40378146]
[1644669932375,0.001,2918.0,2917.9,0.40378146]
[1644669932774,1.45941819,2918.0,2917.9,0.40378146]
[1644669933218,0.301,2918.0,2917.9,0.40378146]
[1644669933416,1.75941819,2918.0,2917.9,0.40378146]
[1644669933617,1.75941819,2918.0,2917.8,0.07280808]
[1644669933925,1.45941819,2917.9,2917.8,0.07280808]
[1644669935324,1.40941819,2917.9,2917.8,0.07280808]
[1644669935533,5.22413119,2917.9,2917.8,0.07280808]
[1644669935724,2.11899023,2917.9,2917.7,0.04796183]
[1644669935925,0.71345653,2917.9,2917.7,0.04796183]
[1644669936429,0.70957204,2917.9,2917.7,0.04796183]
[1644669936873,0.71784104,2917.9,2917.7,0.04796183]
[1644669937764,0.70957204,2917.9,2917.7,0.04796183]
[1644669938065,0.71784104,2917.9,2917.7,0.04796183]
[1644669938765,0.70957204,2917.9,2917.7,0.04796183]
[1644669938968,0.70957204,2917.9,2917.8,0.40378146]
[1644669939163,0.71783868,2917.9,2917.8,0.40378146]
[1644669939972,0.70957204,2917.9,2917.8,0.40378146]
[1644669940169,0.70957204,2917.9,2917.8,0.42872564]
[1644669940613,0.71057204,2917.9,2917.8,0.42872564]
[1644669940815,0.66057204,2917.9,2917.8,0.42872564]
[1644669941014,0.65957204,2917.9,2917.8,0.42872564]
[1644669945872,0.66505531,2917.9,2917.8,0.43172677]
[1644669949213,5.35,2917.8,2917.1,0.1713]
[1644669949426,4.95,2917.5,2916.7,0.1713]
[1644669949619,3.9460601,2917.4,2916.5,0.1728049]
[1644669949818,0.001,2917.3,2916.5,0.1728049]
[1644669950019,0.301,2917.4,2916.5,0.1728049]
[1644669950318,0.5057845,2917.3,2916.5,0.1728049]
[1644669952365,4.95,2917.2,2916.5,0.0015049]
[1644669952566,0.001,2917.1,2916.5,0.0015049]
[1644669952964,0.3,2917.2,2916.5,0.0015049]
[1644669953165,0.8067845,2917.3,2916.5,0.0015049]
[1644669954669,4.95,2917.2,2916.5,0.0015049]
[1644669954869,0.6678659,2916.6,2916.5,0.0015049]
[1644669955069,0.9678659,2916.6,2916.5,0.0015049]
[1644669960472,0.9678659,2916.6,2916.5,0.02305638]
[1644669963519,2.42705563,2916.6,2916.5,0.02305638]
[1644669963723,2.42705563,2916.6,2916.1,0.25]
[1644669963724,2.4,2916.5,2916.1,0.25]
[1644669963923,2.4,2916.5,2915.6,0.1713]
[1644669963924,4.95,2916.3,2915.6,0.1713]
[1644669964118,4.95,2916.3,2915.2,1.24160283]
[1644669964119,1.45918973,2916.2,2915.3,0.1713]
[1644669964320,0.66525228,2915.4,2915.3,0.1713]
[1644669964723,0.96525228,2915.4,2915.2,0.1715]
[1644669967376,0.96525228,2915.4,2914.9,0.1715]
[1644669968174,0.96525228,2915.4,2915.0,0.00878997]
[1644669968374,0.96525228,2915.4,2914.9,0.1715]
[1644669968375,0.96525228,2915.4,2914.9,0.13028997]
[1644669969587,3.73019575,2915.3,2914.9,0.00315639]
[1644669969785,3.73019575,2915.3,2914.6,0.00315639]
[1644669969786,0.001,2915.2,2914.6,0.00315639]
[1644669969983,0.001,2915.2,2914.3,0.17465639]
[1644669970482,0.54730801,2914.4,2914.3,0.17465639]
[1644669970724,0.84730801,2914.4,2914.3,0.17465639]
[1644669971021,0.84730801,2914.4,2914.3,0.1715]
[1644669972326,5.79730801,2914.4,2913.9,0.00315639]
[1644669972523,8.66898362,2914.3,2913.9,0.00315639]
[1644669972722,8.66898362,2914.3,2913.6,0.00315639]
[1644669972723,0.3,2914.3,2913.6,0.00315639]
[1644669972928,4.03657173,2914.3,2914.0,0.00936895]
[1644669973123,0.3,2914.3,2914.0,0.00936895]
[1644669973323,1.84730801,2914.4,2914.0,0.00936895]
[1644669973523,0.3,2914.4,2913.6,6.76e-06]
[1644669973925,0.3,2914.4,2914.0,0.05]
[1644669974128,0.3,2914.7,2914.3,0.05]
[1644669974380,3.6273,2915.1,2914.1,0.1715]
[1644669974381,3.5,2915.0,2914.1,0.1715]
[1644669974576,3.5,2915.0,2913.3,6.3221127]
[1644669974577,0.5338383,2914.3,2913.6,0.1715]
[1644669974775,0.5338383,2914.3,2913.4,0.2215]
[1644669974974,0.5338383,2914.3,2913.4,0.1715]
[1644669975275,0.5338383,2914.3,2913.5,0.05]
[1644669975276,0.8338383,2914.3,2913.5,0.05]
[1644669975480,0.8338383,2914.3,2913.4,0.1715]
[1644669975676,0.8338383,2914.3,2913.7,0.05]
[1644669977178,0.8338383,2914.3,2913.5,0.2215]
[1644669977776,0.00937556,2914.1,2913.5,0.23087779]
[1644669978217,0.00937556,2914.1,2913.5,0.53087779]
[1644669978619,0.8338383,2914.3,2913.5,0.5215]
[1644669978817,0.8338383,2914.3,2913.5,0.48087737]
[1644669979018,0.00937578,2913.9,2913.7,0.05]
[1644669979623,0.00937578,2913.9,2913.7,0.541]
[1644669979826,0.0636887,2914.5,2913.9,0.85794]
[1644669980025,0.3,2914.1,2913.9,0.85794]
[1644669980226,0.0636887,2914.5,2913.9,0.90794]
[1644669980427,0.1715,2914.8,2913.9,0.93331648]
[1644669980629,0.1715,2914.8,2914.1,0.05]
[1644669980825,0.1715,2914.8,2913.9,0.02537648]
[1644669981026,0.1725,2914.8,2913.9,0.02537648]
[1644669981227,0.1715,2914.8,2913.9,0.02537648]
[1644669981427,0.00937507,2914.6,2914.0,0.05]
[1644669982269,0.064644,2914.9,2914.0,0.05]
[1644669982469,0.00937524,2914.4,2914.0,0.05]
[1644669983274,0.00937524,2914.4,2913.9,0.02537648]
[1644669983470,0.001,2914.8,2913.9,0.02537648]
[1644669983671,0.00937535,2914.3,2913.9,0.02537648]
[1644669984675,0.65032635,2914.5,2913.9,0.02537648]
[1644669985076,0.00937546,2914.2,2913.9,0.02537648]
[1644669985722,0.00937546,2914.2,2913.7,0.19681557]
[1644669986030,0.00937551,2914.2,2913.7,0.19681557]
[1644669986421,0.54366244,2913.8,2913.7,0.19681557]
[1644669986826,0.84366244,2913.8,2913.1,0.25]
[1644669987024,0.84366244,2913.8,2912.7,3.1619]
[1644669987921,0.84366244,2913.8,2912.8,0.05]
[1644669988327,5.84561432,2913.3,2912.8,0.1716]
[1644669988633,5.84561432,2913.3,2912.9,0.00311762]
[1644669988634,4.95,2913.1,2912.9,0.00311762]
[1644669988824,0.1716,2913.0,2912.6,0.00311762]
[1644669989027,0.1716,2913.0,2912.0,0.25311762]
[1644669989225,0.1716,2913.0,2912.1,0.05]
[1644669989478,0.1716,2913.0,2912.4,0.05]
[1644669989690,0.1716,2913.0,2912.4,0.0032036]
[1644669990177,0.1716,2913.0,2912.7,0.05]
[1644669990976,0.1716,2913.0,2912.7,0.05298726]
[1644669991776,0.1716,2913.0,2912.7,0.05]
[1644669992175,0.1716,2913.0,2912.7,0.05298726]
[1644669992777,0.1716,2913.0,2912.7,0.00298726]
[1644669993220,0.1716,2913.0,2912.6,0.17471762]
[1644669993420,0.1716,2913.0,2912.8,0.05]
[1644669993624,0.1716,2913.0,2912.7,0.01228702]
[1644669994222,0.1716,2913.0,2912.7,0.00311762]
[1644669994625,0.1716,2913.0,2912.8,0.05]
[1644669995528,0.1716,2913.0,2912.7,0.00311762]
[1644669995729,0.22628631,2913.0,2912.9,0.02023305]
[1644669996436,0.22628631,2913.0,2912.9,0.07023305]
[1644669999081,0.05468631,2913.0,2912.9,0.07023305]
[1644669999481,0.05468631,2913.0,2912.9,0.56123305]
[1644670001729,0.05468631,2913.0,2912.9,0.51123305]
[1644670003332,0.05468631,2913.0,2912.9,0.02023305]
[1644670005577,0.05468631,2913.0,2912.8,0.07921176]
[1644670006374,0.05468631,2913.0,2912.8,0.07034883]
[1644670006577,0.05468631,2913.0,2912.8,0.0792119]
[1644670007378,0.05468631,2913.0,2912.8,0.2508119]
[1644670007579,0.05468631,2913.0,2912.8,0.35132145]
[1644670007778,0.05468631,2913.0,2912.8,0.36018452]
[1644670008420,0.05309377,2913.0,2912.8,0.36018452]
[1644670008623,0.05309377,2913.0,2912.8,0.18858452]
[1644670008823,0.05309377,2913.0,2912.8,0.17972145]
[1644670009023,0.05309377,2913.0,2912.8,0.18858452]
[1644670010030,0.05309377,2913.0,2912.8,0.17972145]
[1644670010230,0.05309377,2913.0,2912.8,0.18858451]
[1644670010933,0.05309377,2913.0,2912.8,0.13858451]
[1644670011231,0.05309377,2913.0,2912.8,0.12972145]
[1644670011432,0.05309377,2913.0,2912.8,0.13858451]
[1644670012377,0.05309377,2913.0,2912.8,0.12972145]
[1644670012572,0.05309377,2913.0,2912.8,0.13858451]
[1644670013574,0.05309377,2913.0,2912.8,0.12972145]
[1644670013772,0.05309377,2913.0,2912.8,0.1385845]
[1644670014680,0.05309377,2913.0,2912.8,0.12972145]
[1644670015077,0.05309377,2913.0,2912.8,0.1385845]
[1644670016020,0.05309377,2913.0,2912.8,0.12972145]
[1644670016220,0.05309377,2913.0,2912.8,0.1385845]
[1644670017224,0.05309377,2913.0,2912.8,0.12972145]
[1644670017427,0.05309377,2913.0,2912.8,0.1385845]
[1644670018424,0.05309377,2913.0,2912.8,0.12972145]
[1644670018625,0.05309377,2913.0,2912.8,0.1385845]
[1644670019579,0.05309377,2913.0,2912.8,0.12972145]
[1644670019776,0.05309377,2913.0,2912.8,0.1385845]
[1644670020483,0.3318553,2912.7,2911.9,0.25]
[1644670020783,0.3318553,2912.7,2911.7,3.8629]
[1644670020784,1.46105952,2912.6,2911.6,0.1716]
[1644670020978,1.63265952,2912.6,2911.6,0.1716]
[1644670021176,1.46105952,2912.5,2911.6,0.1716]
[1644670021577,2.08343049,2912.4,2911.6,0.1716]
[1644670021778,0.92237097,2912.4,2911.5,0.1716]
[1644670021976,0.62822957,2911.6,2911.5,0.1716]
[1644670022382,0.92822957,2911.6,2911.5,0.1716]
[1644670022780,5.68862957,2911.6,2911.5,0.1716]
[1644670023225,5.0604,2911.6,2911.5,0.1716]
[1644670025033,5.0604,2911.6,2911.4,0.00939437]
[1644670025239,0.3,2911.6,2911.4,0.00939437]
[1644670025630,5.1716,2911.5,2910.4,7.9912]
[1644670025835,5.3,2911.5,2911.4,0.00939443]
[1644670026034,5.3,2911.5,2911.4,0.05939443]
[1644670026231,0.56017423,2911.8,2911.4,0.05939443]
[1644670026232,0.86017423,2911.8,2911.4,0.05939443]
[1644670026532,5.0,2911.5,2911.4,0.00939443]
[1644670026732,5.0,2911.5,2911.4,0.05]
[1644670026733,5.3,2911.5,2911.4,0.05]
[1644670027179,5.3,2911.5,2911.3,0.85868]
[1644670027180,0.58685472,2911.2,2911.1,0.05]
[1644670027580,5.88685472,2911.2,2911.1,0.05]
[1644670027781,5.3,2911.2,2911.1,0.05]
[1644670027978,5.3,2911.2,2911.1,0.2216]
[1644670028376,5.3,2911.2,2911.1,0.05]
[1644670029179,5.3,2911.2,2911.1,0.2216]
[1644670029385,5.3,2911.2,2911.1,0.05]
[1644670029586,5.3,2911.2,2911.1,0.7126]
[1644670029784,0.06546207,2912.4,2911.1,5.39948118]
[1644670029987,0.06546207,2912.4,2912.0,0.05]
[1644670030389,0.1716,2912.6,2912.0,0.05]
[1644670030632,5.0,2912.1,2911.7,0.05]
[1644670031031,5.3,2912.1,2911.7,0.05]
[1644670031233,5.0,2911.8,2911.6,3.24483719]
[1644670031436,5.0,2911.8,2911.7,0.541]
[1644670031635,5.0,2911.8,2911.7,5.23939936]
[1644670031833,0.3,2912.1,2911.7,5.23939936]
[1644670032035,0.00939895,2912.4,2911.7,5.23939936]
[1644670032233,0.00939895,2912.4,2911.7,5.18939936]
[1644670032434,0.00939895,2912.4,2912.3,0.05]
[1644670032837,0.71586293,2912.6,2912.3,0.05]
[1644670033041,5.0,2912.4,2912.3,0.05]
[1644670033335,5.3,2912.4,2912.3,0.05]
[1644670034137,5.3,2912.4,2912.2,0.00940129]
[1644670034583,5.0,2912.3,2912.2,0.00940129]
[1644670035188,5.0,2912.3,2911.1,3.43530664]
[1644670035189,3.35,2912.2,2911.6,0.01773461]
[1644670035391,3.35,2912.2,2912.1,0.00940123]
[1644670035392,3.8216,2912.2,2912.1,0.00940123]
[1644670035689,5.05793214,2911.7,2911.4,0.03761369]
[1644670036088,0.36733337,2911.7,2911.6,0.05]
[1644670036485,4.94059877,2911.5,2911.3,2.20818]
[1644670036686,4.94059877,2911.5,2911.4,0.00308726]
[1644670036883,0.06733337,2911.7,2911.4,1.0]
[1644670036884,5.00793214,2911.7,2911.4,1.0]
[1644670037086,5.00793214,2911.7,2911.4,0.00308726]
[1644670037288,4.94059877,2911.5,2911.4,1.17468726]
[1644670037584,4.94059877,2911.5,2911.4,1.0]
[1644670037784,4.94059877,2911.5,2911.3,2.18878]
[1644670037785,5.24059877,2911.5,2911.3,2.18878]
[1644670038236,0.3,2911.5,2911.3,2.18878]
[1644670038631,0.06733337,2911.7,2911.3,5.45586633]
[1644670038632,0.36733337,2911.7,2911.3,5.45586633]
[1644670038831,0.36733337,2911.7,2911.4,1.0]
[1644670039231,4.94059877,2911.5,2911.4,1.00308726]
[1644670039434,4.94059877,2911.5,2911.4,4.2131604]
[1644670039635,5.24059877,2911.5,2911.4,4.21517432]
[1644670039835,5.24059877,2911.5,2911.4,4.21072329]
[1644670040035,5.24059877,2911.5,2911.4,4.23510197]
[1644670040236,5.24059877,2911.5,2911.3,0.0094021]
[1644670040437,5.24059877,2911.5,2911.4,0.01653714]
[1644670040637,4.92325356,2911.4,2911.3,0.0094021]
[1644670041136,4.92325356,2911.4,2911.1,0.30308726]
[1644670041334,4.92325356,2911.4,2911.2,0.00940221]